[Event "Romanian Championship 2024"]
[Site "Eforie Nord"]
[Date "2024.02.27"]
[Round "5.4"]
[White "Gales, Randi-Ioan"]
[Black "Ghimpu, Samuel-Timotei"]
[Result "0-1"]
[ECO "E68"]
[WhiteElo "2062"]
[BlackElo "2467"]
[Annotator "RC"]
[PlyCount "146"]
[EventDate "2024.02.24"]
[EventType "swiss"]
[EventCountry "ROU"]
[SourceTitle "playchess.com"]
[Source "ChessBase"]
[SourceQuality "1"]
[TimeControl "40/5400+30:900+30"]

1. c4 {[%emt 0:00:02]} Nf6 {[%emt 0:03:49]} 2. g3 {[%emt 0:00:07]} g6 {[%emt 0:00:37]} 3. Bg2 {[%emt 0:00:27]} Bg7 {[%emt 0:00:10]} 4. Nc3 {[%emt 0:00:09]} O-O {[%emt 0:00:15]} 5. d4 {[%emt 0:00:08]} d6 {[%emt 0:00:07]} 6. h3 {[%emt 0:00:18]} Nbd7 {[%emt 0:00:46]} 7. Nf3 {[%emt 0:00:55]} Re8 {[%emt 0:01:12]} 8. e4 {[%emt 0:02:12]} e5 {[%emt 0:00:16]} 9. O-O {[%emt 0:01:55]} exd4 {[%emt 0:00:06]} 10. Nxd4 {[%emt 0:00:06]} Nc5 {[%emt 0:00:01]} 11. Re1 {[%emt 0:01:32]} h6 {[%emt 0:00:31]} 12. Kh2 {[%emt 0:08:53]} a5 {[%emt 0:07:04]} 13. f4 {[%emt 0:08:51]} c6 {[%emt 0:01:41]} 14. Nc2 {[%emt 0:02:40]} Be6 {[%emt 0:16:19]} 15. Na3 {[%emt 0:05:25]} Qc7 {[%emt 0:14:38]} 16. Qc2 {[%emt 0:09:20]} h5 {[%emt 0:02:48]} 17. f5 {[%emt 0:04:41]} Bxf5 {[%emt 0:00:23]} 18. Bf4 {[%emt 0:04:13]} Be6 {[%emt 0:19:11]} 19. Rad1 {[%emt 0:03:39]} Red8 {[%emt 0:01:18]} 20. Qf2 {[%emt 0:09:08]} Ne8 {[%emt 0:10:19]} 21. Bg5 {[%emt 0:09:39]} f6 {[%emt 0:02:47]} 22. Be3 {[%emt 0:01:59]} Qe7 {[%emt 0:01:46]} 23. Nd5 {[%emt 0:03:21]} Qf7 {[%emt 0:04:03]} 24. Nb6 {[%emt 0:22:50]} Rab8 {[%emt 0:01:12]} 25. Bxc5 {[%emt 0:00:00]} dxc5 {[%emt 0:00:02]} 26. Qxc5 {[%emt 0:00:00]} Qc7 {[%emt 0:00:35]} 27. Qe3 {[%emt 0:00:00]} h4 {[%emt 0:00:52]} 28. c5 {[%emt 0:00:00]} Qxg3+ {[%emt 0:01:39]} 29. Qxg3 {[%emt 0:00:00]} hxg3+ {[%emt 0:00:06]} 30. Kxg3 {[%emt 0:00:00]} Bf8 {[%emt 0:00:06]} 31. Na4 {[%emt 0:00:00]} Bxa2 {[%emt 0:01:11]} 32. Bf1 {[%emt 0:00:00]} Nc7 {[%emt 0:01:52]} 33. Bc4+ {[%emt 0:00:00]} Bxc4 {[%emt 0:00:08]} 34. Nxc4 {[%emt 0:00:00]} Ne6 {[%emt 0:01:10]} 35. Nxa5 {[%emt 0:00:00]} Nxc5 {[%emt 0:04:29]} 36. Rxd8 {[%emt 0:00:00]} Rxd8 {[%emt 0:00:02]} 37. Nxc5 {[%emt 0:00:00]} Bxc5 {[%emt 0:00:30]} 38. Nxb7 {[%emt 0:00:00]} Rd3+ {[%emt 0:00:00]} 39. Kg4 {[%emt 0:00:00]} Bd4 {[%emt 0:02:58]} 40. Na5 {[%emt 0:00:00]} c5 {[%emt 0:00:00]} 41. Nc4 {[%emt 0:04:28]} Rb3 {[%emt 0:01:10]} 42. Re2 {[%emt 0:12:17]} Kf7 {[%emt 0:00:57]} 43. h4 {[%emt 0:07:45]} Ke6 44. Rc2 {[%emt 0:00:00]} Rd3 {[%emt 0:18:24]} 45. h5 {[%emt 0:00:00]} gxh5+ {[%emt 0:00:00]} 46. Kxh5 {[%emt 0:00:00]} Rg3 {[%emt 0:00:00]} 47. Rd2 {[%emt 0:00:02]} Rg1 {[%emt 0:00:00]} 48. Re2 {[%emt 0:01:54]} Rc1 {[%emt 0:00:00]} 49. Na5 {[%emt 0:00:26]} Ke5 {[%emt 0:00:00]} 50. Kg4 {[%emt 0:00:25]} Kd6 {[%emt 0:00:00]} 51. Kf3 {[%emt 0:00:31]} Rf1+ {[%emt 0:00:00]} 52. Kg4 {[%emt 0:00:03]} Kc7 {[%emt 0:02:38]} 53. Nc4 {[%emt 0:00:26]} Kc6 {[%emt 0:00:50]} 54. e5 {[%emt 0:00:53]} fxe5 {[%emt 0:00:40]} 55. Nxe5+ {[%emt 0:00:02]} Kd5 {[%emt 0:00:47]} 56. Nd7 {[%emt 0:01:13]} c4 {[%emt 0:00:26]} 57. Rd2 {[%emt 0:00:07]} Ke4 {[%emt 0:00:05]} 58. Nb8 {[%emt 0:00:35]} Rg1+ {[%emt 0:01:34]} 59. Kh3 {[%emt 0:00:20]} Rb1 {[%emt 0:00:00]} 60. Nc6 {[%emt 0:00:36]} Bxb2 {[%emt 0:00:00]} 61. Rg2 {[%emt 0:00:48]} Bf6 {[%emt 0:00:26]} 62. Rg4+ {[%emt 0:00:29]} Kd5 {[%emt 0:00:18]} 63. Na5 {[%emt 0:00:35]} c3 {[%emt 0:00:30]} 64. Nc4 {[%emt 0:00:05]} Bd4 {[%emt 0:00:39]} 65. Na3 {[%emt 0:00:16]} Rh1+ {[%emt 0:00:48]} 66. Kg2 {[%emt 0:00:01]} Rg1+ {[%emt 0:00:15]} 67. Kf3 {[%emt 0:00:01]} Rxg4 {[%emt 0:00:19]} 68. Kxg4 {[%emt 0:00:01]} Ke4 {[%emt 0:00:39]} 69. Nc2 {[%emt 0:00:24]} Bc5 {[%emt 0:00:20]} 70. Kg3 {[%emt 0:00:57]} Kd3 {[%emt 0:00:21]} 71. Na1 {[%emt 0:00:17]} Ba3 {[%emt 0:00:11]} 72. Nb3 {[%emt 0:00:36]} c2 {[%emt 0:00:09]} 73. Kf2 {[%emt 0:00:47]} Kc3 {[%emt 0:00:09]} 0-1

[Event "Romanian Championship 2024"]
[Site "Eforie Nord"]
[Date "2024.02.27"]
[Round "5.5"]
[White "Magold, Filip"]
[Black "Antal, Hunor-Zoltan"]
[Result "1/2-1/2"]
[ECO "B45"]
[WhiteElo "2400"]
[BlackElo "2272"]
[Annotator "TA"]
[PlyCount "69"]
[EventDate "2024.02.24"]
[EventType "swiss"]
[EventCountry "ROU"]
[SourceTitle "playchess.com"]
[Source "ChessBase"]
[SourceQuality "1"]
[TimeControl "40/5400+30:900+30"]

{[%evp 17,69,24,30,54,59,33,37,45,46,22,22,22,13,56,13,51,32,25,18,33,16,14,17,15,16,22,17,24,26,32,33,17,13,0,0,0,0,0,0,0,0,0,0,0,0,0,0,0,0,0,0,0,0,0]} 1. e4 {[%emt 0:00:45]} c5 {[%emt 0:00:47]} 2. Nc3 {[%emt 0:01:14]} Nc6 {[%emt 0:02:06]} 3. Nf3 {[%emt 0:03:32][%cal Bg1f3,Bf3d4,Bd4b5,Bb5c7][%mdl 32]} e6 {[%emt 0:01:20]} 4. d4 {[%emt 0:01:40]} cxd4 {[%emt 0:00:17]} 5. Nxd4 {[%emt 0:00:24]} Nf6 {[%emt 0:05:42]} 6. Ndb5 {[%emt 0:07:54]} Bb4 {[%emt 0:04:43]} 7. Bf4 {[%emt 0:03:18]} Nxe4 {[%emt 0:10:53]} 8. Qf3 {[%emt 0:16:09]} d5 {[%emt 0:06:50]} 9. Nc7+ {[%emt 0:00:43]} Kf8 {[%emt 0:00:13][%cal Oe6e5]} 10. Nxa8 {[%emt 0:00:39]} e5 {[%emt 0:01:12]} 11. Bd2 {[%emt 0:05:07]} Nd4 {[%emt 0:11:01][%csl LRc2,LRf3]} 12. Qd1 {[%emt 0:02:15] White is slightly better.} Qh4 {[%emt 0:02:15][%csl Ge4][%cal Rh4f2]} 13. g3 {[%emt 0:01:39]} Qf6 {[%emt 0:00:36][%csl Ge4][%cal Rf6f2]} (13... Nxd2 $2 14. gxh4 (14. Bg2 Qh3 $11) 14... N2f3+ 15. Qxf3 Nxf3+ 16. Kd1 $18) 14. Nxe4 {[%emt 0:02:57]} (14. Nxd5 $2 Qxf2#) 14... Nf3+ {[%emt 0:04:04] [#]} 15. Qxf3 $1 {[%emt 0:00:59]} Qxf3 {[%emt 0:00:08]} 16. Bxb4+ {[%emt 0:00:04]} Kg8 {[%emt 0:00:11]} 17. Nd6 {[%emt 0:01:50]} Qxh1 {[%emt 0:02:13] Black is weak on the dark squares} 18. O-O-O $1 {[%emt 0:01:16]} (18. Nc7 Bg4 19. h3 Bxh3 $17) 18... Be6 {[%emt 0:01:21]} (18... Bg4 $6 19. Be2 Qxh2 20. Bxg4 $18) 19. Nc7 {[%emt 0:01:59] Black must now prevent Nxe6.} Qxh2 {[%emt 0:03:01]} (19... Qf3 {is interesting.} 20. Nxe6 fxe6 21. Bh3 Qf6) 20. Nxd5 {[%emt 0:03:07]} ({Reject} 20. Nxe6 fxe6 21. Bc5 (21. Nxb7 h5 $17) 21... h5 22. Bxa7 h4 23. gxh4 Qxh4 $17) 20... Bxd5 {[%emt 0:00:41]} 21. Rxd5 {[%emt 0:00:13]} Qxf2 {[%emt 0:07:20] [#]} 22. Rxe5 $1 {[%emt 0:11:05][%cal Re5e8]} Qxf1+ {[%emt 0:01:23]} 23. Re1 {[%emt 0:01:22]} Qxe1+ {[%emt 0:00:18]} 24. Bxe1 {[%emt 0:00:10]} h5 {[%emt 0:01:44] The position is equal.} 25. Nxb7 {[%emt 0:00:27]} g5 $1 {[%emt 0:00:42]} 26. c4 {[%emt 0:00:44]} h4 {[%emt 0:01:31]} 27. gxh4 {[%emt 0:00:11]} gxh4 {[%emt 0:00:05]} 28. c5 {[%emt 0:00:08]} h3 {[%emt 0:00:16] ( -> ...h2)} 29. Bg3 {[%emt 0:00:07]} ({Don't blunder} 29. c6 $2 h2 30. c7 Kg7 $19 (30... h1=R $2 {is the wrong capture.} 31. c8=Q+ Kg7 32. Qg4+ Kf6 33. Qd4+ Kf5 34. Kc2 $18) (30... Kh7 $2 31. Nd8 $19)) 29... h2 {[%emt 0:00:20]} 30. Bxh2 {[%emt 0:00:06]} Rxh2 {[%emt 0:00:04]} 31. c6 {[%emt 0:00:05] And now c7 would win.} Rh6 {[%emt 0:00:51]} 32. Nd8 {[%emt 0:00:46] Threatens to win with c7.} Rh5 {[%emt 0:00:55]} (32... Rh4 $5 33. b3 $8 Rh5 $11) 33. Nb7 {[%emt 0:00:19] Repels Rc5+. aiming for c7.} Rh6 {[%emt 0:00:17]} 34. Nd8 {[%emt 0:00:14] Strongly threatening c7.} Rh5 {[%emt 0:00:42]} (34... Rh4 $5 35. b3 $8 Rh5 $11) 35. Nb7 $1 {[%emt 0:00:11] Prevents Rc5+.   Weighted Error Value: White=0.01 (flawless) /Black=0.00 (flawless) .  OK:         	White=17    	Black=12     Best:        	White=3     	Black=7      Strong:       	White=2     	Black=1} 1/2-1/2

[Event "Romanian Championship 2024"]
[Site "Eforie Nord"]
[Date "2024.02.27"]
[Round "5.6"]
[White "Manolache, Marius"]
[Black "Serban, Cristian-Stefan"]
[Result "1-0"]
[ECO "D38"]
[WhiteElo "2387"]
[BlackElo "2309"]
[Annotator "TA"]
[PlyCount "49"]
[EventDate "2024.02.24"]
[EventType "swiss"]
[EventCountry "ROU"]
[SourceTitle "playchess.com"]
[Source "ChessBase"]
[SourceQuality "1"]
[TimeControl "40/5400+30:900+30"]

{[%evp 11,49,19,10,5,13,22,17,-23,0,0,0,4,11,24,14,30,42,30,71,60,141,68,88,85,71,85,152,154,264,270,272,288,435,378,489,481,755,712,737,717]} 1. d4 {[%emt 0:00:12]} Nf6 {[%emt 0:01:06]} 2. Nf3 {[%emt 0:00:12]} d5 {[%emt 0:00:09]} 3. c4 {[%emt 0:00:15]} e6 {[%emt 0:00:05]} 4. Nc3 {[%emt 0:00:47]} Bb4 {[%emt 0:00:07]} 5. Qa4+ {[%emt 0:00:50]} Nc6 {[%emt 0:00:07]} 6. e3 {[%emt 0:00:13]} O-O {[%emt 0:00:08]} 7. Qc2 {[%emt 0:00:51]} b6 {[%emt 0:00:26]} 8. cxd5 {[%emt 0:04:15]} exd5 {[%emt 0:00:09]} 9. h3 {[%emt 0:03:33] The position is equal.} Bb7 {[%emt 0:06:24]} 10. Bd3 {[%emt 0:00:26]} Re8 {[%emt 0:15:05]} 11. O-O {[%emt 0:00:16]} a6 {[%emt 0:02:41]} 12. a3 {[%emt 0:00:32]} Bf8 {[%emt 0:02:48]} 13. b4 {[%emt 0:01:21]} h6 {[%emt 0:08:42]} 14. Bb2 {[%emt 0:01:17]} Kh8 {[%emt 0:07:40]} 15. Rac1 {[%emt 0:10:32] White is more active.} Ne4 {[%emt 0:16:16]} 16. Qb3 {[%emt 0:01:11]} (16. Nxe4 dxe4 17. Bxe4 Nxb4 18. Qxc7 Bxe4 $11) (16. Ne5 $1 $16 {[%cal Re5f7]} Nxe5 17. dxe5) 16... Nxc3 {[%emt 0:00:05]} 17. Rxc3 {[%emt 0:00:13]} Bd6 {[%emt 0:02:02]} 18. Bb1 {[%emt 0:09:50][%cal Ob3c2]} (18. Qxd5 $2 Bh2+ 19. Nxh2 Qxd5 $19) 18... Qd7 {[%emt 0:05:26]} (18... Ne7 $142) 19. Qc2 $40 {[%emt 0:06:57][%mdl 128] White goes for the king.} (19. Qxd5 $2 Bh2+ 20. Kxh2 Qxd5 $19) 19... g6 {[%emt 0:00:04] [#]} (19... f5 $16 {was worth a try.} 20. Qxf5 Qxf5 21. Bxf5 Rf8) 20. Ne5 $1 $18 {[%emt 0:04:39][%mdl 512]} Bxe5 {[%emt 0:02:23]} (20... Nxe5 $2 {loses.} 21. dxe5 Rxe5 (21... Bxe5 $2 22. Rxc7 Qd6 23. Bxe5+ Qxe5 24. Rxb7 $18) 22. f4 $18) 21. dxe5 {[%emt 0:00:24][%cal Bd4e5,Be5e6][%mdl 32]} d4 {[%emt 0:02:21]} (21... Kg8 $142 22. Ba2 Rac8) 22. exd4 {[%emt 0:09:49][%cal Oe5e6] aiming for e6!} Nxd4 {[%emt 0:05:54] [#] Hoping for ...Qd5.} 23. e6 $1 {[%emt 0:00:51] White is clearly winning.} Qd5 {[%emt 0:02:35]} (23... Qxe6 $142 24. Rd3 (24. Rxc7 Kg8 $18) 24... Kg8 25. Bxd4 (25. Rxd4 Qc6 $18) 25... Qc6 26. Qxc6 Bxc6) 24. Rg3 {[%emt 0:00:19] exf7 is the strong threat.} (24. Rxc7 $2 Qxg2#) 24... Rxe6 {[%emt 0:00:44] [#]} 25. Ba2 $1 {[%emt 0:00:34][%mdl 512] Weighted Error Value: White=0.07 (flawless) /Black=0.37.  Mistake:       	White=1     	Black=5      Inaccurate:     	White=1     	Black=1      OK:         	White=9     	Black=3      Best:        	White=1     	Black=1      Strong:       	White=1     	---        Brilliant:      	White=1     	---} 1-0

[Event "Romanian Championship 2024"]
[Site "Eforie Nord"]
[Date "2024.02.27"]
[Round "5.7"]
[White "Nastase, Robert-Paul"]
[Black "Ognean, Mihnea-Ionut"]
[Result "1/2-1/2"]
[ECO "B30"]
[WhiteElo "2226"]
[BlackElo "2382"]
[Annotator "TA"]
[PlyCount "47"]
[EventDate "2024.02.24"]
[EventType "swiss"]
[EventCountry "ROU"]
[SourceTitle "playchess.com"]
[Source "ChessBase"]
[SourceQuality "1"]
[TimeControl "40/5400+30:900+30"]

{[%evp 9,47,12,14,22,19,0,10,0,31,22,42,0,15,16,32,-3,62,54,80,82,88,81,102,92,114,0,0,0,0,0,0,0,0,0,0,0,0,0,0,0]} 1. e4 {[%emt 0:07:08]} c5 {[%emt 0:00:09]} 2. Nc3 {[%emt 0:00:05]} Nc6 {[%emt 0:00:16]} 3. Bb5 {[%emt 0:00:05]} Nd4 {[%emt 0:00:11]} 4. Nf3 {[%emt 0:00:05]} e6 {[%emt 0:00:21]} 5. Bd3 {[%emt 0:00:58]} Ne7 {[%emt 0:06:35]} 6. Nxd4 {[%emt 0:14:11]} cxd4 {[%emt 0:00:05]} 7. Ne2 {[%emt 0:00:06]} Nc6 {[%emt 0:00:39]} 8. c3 {[%emt 0:00:05]} d5 {[%emt 0:03:08]} 9. O-O {[%emt 0:03:09]} Be7 {[%emt 0:03:46]} 10. Qa4 {[%emt 0:04:50]} dxe4 {[%emt 0:17:02]} 11. Bxe4 {[%emt 0:00:07]} O-O {[%emt 0:01:06]} 12. Bxc6 {[%emt 0:04:07]} bxc6 {[%emt 0:00:17]} (12... dxc3 $1 $11 13. dxc3 bxc6) 13. Nxd4 $14 {[%emt 0:00:15]} Bf6 {[%emt 0:00:46]} 14. Qxc6 {[%emt 0:05:25]} Rb8 {[%emt 0:00:47]} 15. Nb3 {[%emt 0:10:04]} Bb7 {[%emt 0:15:58]} 16. Qc5 {[%emt 0:09:54]} Qd3 {[%emt 0:18:34] [#] Hoping for ...Ba6.} 17. Qxa7 {[%emt 0:00:53]} (17. Qe3 $1 $16 {[%cal Re3d3]} Qf5 18. f3 (18. Qxa7 Bxg2 19. Kxg2 Qg4+ 20. Kh1 Qf3+ 21. Kg1 Rb4 $11)) 17... Bxg2 $1 $11 {[%emt 0:02:06] The position is equal.} 18. Kxg2 {[%emt 0:01:13] Strongly threatening Qe3.} Rb5 $1 {[%emt 0:00:04]} 19. f4 {[%emt 0:14:23] Against Rg5+} (19. Rg1 $2 {gets mated.} Rg5+ 20. Kh1 Qf3+) 19... Qg6+ $1 {[%emt 0:04:05]} ({Much weaker is} 19... Qe4+ $6 20. Rf3 Ra8 21. Qf2 (21. Qe3 Qxe3 22. dxe3 Rxb3 $18) 21... Rxb3 22. d3 $14) 20. Kh1 $1 {[%emt 0:00:31]} Qe4+ {[%emt 0:00:14]} 21. Kg1 {[%emt 0:00:03]} Qg6+ {[%emt 0:02:12]} 22. Kh1 $1 {[%emt 0:00:08]} Qe4+ {[%emt 0:00:56]} 23. Kg1 {[%emt 0:00:05] [#] Qe3 would now be deadly.} Qg6+ {[%emt 0:00:05]} 24. Kh1 $1 {Weighted Error Value: White=0.16 (very precise) /Black=0.08 (flawless) .  Mistake:       	White=1     	Black=1      Inaccurate:     	White=2     	Black=1      OK:         	White=2     	Black=6      Best:        	White=3     	Black=2      Strong:       	White=3     	Black=3} 1/2-1/2

[Event "Romanian Championship 2024"]
[Site "Eforie Nord"]
[Date "2024.02.27"]
[Round "5.8"]
[White "Nevednichy, Vladislav"]
[Black "Tudor, Henry Edward"]
[Result "1-0"]
[ECO "B93"]
[WhiteElo "2451"]
[BlackElo "2239"]
[Annotator "TA"]
[PlyCount "93"]
[EventDate "2024.02.24"]
[EventType "swiss"]
[EventCountry "ROU"]
[SourceTitle "playchess.com"]
[Source "ChessBase"]
[SourceQuality "1"]
[TimeControl "40/5400+30:900+30"]

{[%evp 12,93,14,6,14,0,0,0,0,0,0,0,0,0,0,0,0,0,0,0,0,0,8,11,7,-8,20,19,17,19,17,21,10,15,19,17,70,42,77,118,95,87,91,49,51,35,88,87,78,13,47,45,69,0,61,39,28,0,0,0,160,0,87,75,6241,6241,1702,1935,2364,2206,1311,819,779,761,753,753,741,741,736,647,918,918,803,768]} 1. e4 {[%emt 0:00:04]} c5 {[%emt 0:01:32]} 2. Nf3 {[%emt 0:00:06]} d6 {[%emt 0:00:03]} 3. d4 {[%emt 0:00:36]} cxd4 {[%emt 0:00:04]} 4. Nxd4 {[%emt 0:00:03]} Nf6 {[%emt 0:00:04]} 5. Nc3 {[%emt 0:00:03]} a6 {[%emt 0:00:04]} 6. f4 {[%emt 0:01:03]} e5 {[%emt 0:00:05]} 7. Nb3 {[%emt 0:00:07]} Nc6 {[%emt 0:00:07]} 8. Bd3 {[%emt 0:00:27]} Be7 {[%emt 0:15:34]} 9. O-O {[%emt 0:00:17]} O-O {[%emt 0:01:15] The position is equal.} 10. Nd5 {[%emt 0:01:30]} Nxd5 {[%emt 0:19:52]} 11. exd5 {[%emt 0:00:24]} Nb4 {[%emt 0:00:29]} 12. Be4 {[%emt 0:00:13]} f5 {[%emt 0:12:22]} 13. Bf3 {[%emt 0:01:12] Strongly threatening a3.} a5 {[%emt 0:00:21] And now ...a4 would win.} 14. c3 {[%emt 0:00:27]} Na6 {[%emt 0:02:22]} 15. a4 {[%emt 0:00:05]} Qb6+ {[%emt 0:11:13]} 16. Kh1 {[%emt 0:00:10]} Nc5 {[%emt 0:00:09]} 17. Nxc5 {[%emt 0:02:28]} Qxc5 {[%emt 0:00:04]} 18. Qb3 {[%emt 0:01:23]} Kh8 {[%emt 0:02:25]} 19. Re1 {[%emt 0:04:25]} Bf6 {[%emt 0:05:03]} 20. Be3 {[%emt 0:00:46]} Qc7 {[%emt 0:00:01]} 21. g3 {[%emt 0:25:17][%cal Bg2g3,Bg3f4][%mdl 32]} Bd7 {[%emt 0:05:13]} 22. Bb6 {[%emt 0:09:27]} Qc8 {[%emt 0:00:31]} 23. c4 {[%emt 0:17:15]} g5 {[%emt 0:10:04]} (23... e4 $11 24. Be2 Bd8) 24. Rac1 {[%emt 0:01:28]} gxf4 {[%emt 0:02:37]} 25. gxf4 {[%emt 0:00:04]} e4 {[%emt 0:00:06]} 26. Bh5 {[%emt 0:06:04]} Be8 {[%emt 0:04:45]} 27. Be2 {[%emt 0:01:59][%cal Bh5e2,Be2b5,Bb5c4][%mdl 32]} Qd7 {[%emt 0:00:32]} 28. c5 {[%emt 0:00:40]} dxc5 {[%emt 0:01:29]} (28... Qxa4 $14 29. Qxa4 Bxa4) 29. Bb5 $16 {[%emt 0:07:10]} (29. Rxc5 Rg8 $11 (29... Qxa4 30. Qxa4 Bxa4 31. Bxa5 $11)) 29... Qf7 {[%emt 0:00:10]} 30. Bxc5 {[%emt 0:04:39]} (30. Rxc5 $16 Rg8 31. Rc7) 30... Rg8 {[%emt 0:02:50]} (30... Bxb5 $5 31. Bxf8 (31. Qxb5 Rg8 $11) 31... Bc6 $14) 31. Bc4 {[%emt 0:01:54] d6 would now be deadly.} Qh5 {[%emt 0:00:08]} 32. Qe3 {[%emt 0:02:19] Active counter play!} (32. Be2 $1 $14 Qh4 33. Rf1) 32... Bf7 {[%emt 0:03:18]} (32... Bxb2 $2 33. Bd4+ Bxd4 34. Qxd4+ Rg7 35. Re3 $18) ({Black should try} 32... Rg7 $11) 33. Bd4 {[%emt 0:02:42]} Qh6 {[%emt 0:00:47]} 34. Rg1 {[%emt 0:01:56][%cal Be1g1,Bg1g5,Bg5h5,Bh5f5,Bf5e5,Be5e3][%mdl 32] aiming for Qc3.} Bh5 {[%emt 0:00:39] Hoping for ...Bf3+.} 35. h3 {[%emt 0:00:10]} Rgf8 $2 {[%emt 0:01:11] [#]} (35... Rg7 $11 36. Bxf6 Qxf6) 36. d6 $2 {[%emt 0:05:34]} ({Better is} 36. Rg5 $1 $16 {Black must now prevent Bxf6+.} Bf3+ 37. Kh2 Bxd4 38. Qxd4+ Qf6 39. Qe5) 36... Rad8 {[%emt 0:00:11]} (36... Rfd8 $1 $11) 37. Kh2 {[%emt 0:01:08]} Bxd4 $4 {[%emt 0:00:49][%mdl 8192] This costs Black the game.} (37... Rxd6 $16 38. Bc5 Rdd8 (38... Bxb2 $2 39. Rc2 $18)) 38. Qxd4+ $18 {[%emt 0:00:04] White is clearly winning.} Rf6 {[%emt 0:00:13]} 39. Rg5 {[%emt 0:01:46][%cal Oc1c3] White threatens Rc3! and mate.} e3 {[%emt 0:00:44] [#]} 40. Rxh5 $1 {[%emt 0:00:00][%mdl 512]} Qg7 {[%emt 0:00:00]} 41. Rg1 {[%emt 0:02:06]} Rg6 {[%emt 0:02:04]} 42. Qxg7+ {[%emt 0:00:25]} (42. Rxg6 $2 {perishes.} Qxd4 43. Be2 Qxf4+ (43... Qxb2 $2 44. Rg2 $19) 44. Kh1 Rc8 $19 (44... Rxd6 $2 45. Rxd6 Qxd6 46. Rxf5 $19) (44... Qxa4 $2 45. Rg2 $19)) 42... Kxg7 {[%emt 0:00:03]} 43. Rxf5 {[%emt 0:00:20]} Rdxd6 {[%emt 0:00:50]} 44. Rxg6+ {[%emt 0:00:15]} hxg6 {[%emt 0:00:59]} 45. Re5 {[%emt 0:17:29]} Rd4 {[%emt 0:00:41]} 46. b3 {[%emt 0:00:00]} Rxf4 {[%emt 0:00:06]} 47. Rxe3 {[%emt 0:00:00] Weighted Error Value: White=0.23 (precise) /Black=0.23 (precise) .  Loses game:     	---       	Black=1      Mistake:       	White=3     	Black=5      Inaccurate:     	White=3     	Black=3      OK:         	White=14    	Black=12     Best:        	White=4     	Black=2} 1-0